fUST/lending_fUST_20250222
["ID","MTS","AMOUNT","RATE_DAILY","PERIOD"]
[354033116,1740187850849,-500.0,0.00014356,2]
[354033117,1740187850863,-151.0,0.000144,2]
[354033118,1740187850875,-151.0,0.0001442,2]
[354033119,1740187850888,-151.0,0.0001442,2]
[354033120,1740187850902,-749.510208,0.0001442,2]
[354033121,1740187850915,-749.510208,0.0001442,2]
[354033122,1740187850928,-240.274127,0.0001442,2]
[354033123,1740187850942,-240.274127,0.0001442,2]
[354033124,1740187850955,-501.250964,0.0001442,2]
[354033125,1740187850969,-166.056271,0.0001442,2]
[354033126,1740187850982,-501.250964,0.0001442,2]
[354033127,1740187850996,-166.056271,0.0001442,2]
[354033128,1740187851009,-495.606478,0.0001442,2]
[354033129,1740187851023,-495.606478,0.0001442,2]
[354033130,1740187851036,-2661.64527,0.0001442,2]
[354033131,1740187851049,-2661.64527,0.0001442,2]
[354033132,1740187851061,-252.97364114,0.00014438,2]
[354033133,1740187851074,-500.0,0.00014438,2]
[354033134,1740187851088,-151.0,0.00014438,2]
[354033135,1740187851100,-500.0,0.00014438,2]
[354033136,1740187851112,-601.84,0.00014438,2]
[354033137,1740187851122,-388.403669,0.00014438,2]
[354033138,1740187851131,-388.40367094,0.00014438,2]
[354033139,1740187851141,-500.0,0.00014438,2]
[354033140,1740187851150,-527.78,0.00014438,2]
[354033141,1740187851159,-500.0,0.00014438,2]
[354033142,1740187851169,-9433.96,0.00014438,2]
[354033143,1740187851178,-500.0,0.00014438,2]
[354033144,1740187851188,-647.80777918,0.00014438,2]
[354033145,1740187851197,-157.76,0.00014438,2]
[354033146,1740187851207,-2126.18,0.00014438,2]
[354033147,1740187851217,-500.0,0.00014438,2]
[354033148,1740187851226,-666.24,0.00014438,2]
[354033149,1740187851236,-4209.51,0.00014438,2]
[354033150,1740187851247,-677.23,0.00014438,2]
[354033151,1740187851257,-1273.3,0.00014438,2]
[354033152,1740187851267,-695.98,0.00014438,2]
[354033153,1740187851278,-500.0,0.00014438,2]
[354033154,1740187851437,-557.78,0.00014438,2]
[354033155,1740187851450,-785.15,0.00014438,2]
[354033156,1740187851459,-500.0,0.00014438,2]
[354033157,1740187851469,-1053.58,0.00014438,2]
[354033158,1740187851479,-500.0,0.00014438,2]
[354033159,1740187851488,-4000.0,0.000145,2]
[354033160,1740187851498,-151.0,0.000145,2]
[354033161,1740187851507,-151.0,0.000145,2]
[354033162,1740187851516,-151.0,0.000145,2]
[354033163,1740187851525,-151.0,0.000145,2]
[354033164,1740187851535,-151.0,0.000145,2]
[354033165,1740187851545,-1000.0,0.00014518,2]
[354033166,1740187851554,-151.0,0.0001452,2]
[354033167,1740187851563,-151.0,0.0001452,2]
[354033168,1740187851572,-151.0,0.0001452,2]
[354033169,1740187851585,-500.0,0.0001452,2]
[354033170,1740187851594,-500.0,0.0001452,2]
[354033171,1740187851604,-601.84,0.0001452,2]
[354033172,1740187851613,-500.0,0.0001452,2]
[354033173,1740187851623,-527.78,0.0001452,2]
[354033174,1740187851631,-500.0,0.0001452,2]
[354033175,1740187851641,-495.606478,0.0001452,2]
[354033176,1740187851650,-495.606475,0.0001452,2]
[354033177,1740187851660,-9433.96,0.0001452,2]
[354033178,1740187851669,-272.7,0.0001452,2]
[354033179,1740187851678,-2126.18,0.0001452,2]
[354033180,1740187851688,-2661.64527,0.0001452,2]
[354033181,1740187851698,-2661.64526915,0.0001452,2]
[354033182,1740187851707,-500.0,0.0001452,2]
[354033183,1740187851717,-666.24,0.0001452,2]
[354033184,1740187851727,-4209.51,0.0001452,2]
[354033185,1740187851736,-677.23,0.0001452,2]
[354033186,1740187851747,-1273.3,0.0001452,2]
[354033187,1740187851756,-695.98,0.0001452,2]
[354033188,1740187851766,-500.0,0.0001452,2]
[354033189,1740187851775,-785.15,0.0001452,2]
[354033190,1740187851784,-436.55,0.0001452,2]
[354033191,1740187851793,-1053.58,0.0001452,2]
[354033192,1740187851803,-500.0,0.0001452,2]
[354033193,1740187851812,-156.79721485,0.00014532,2]
[354033194,1740187851821,-427.06457576,0.00014584,2]
[354033195,1740187851831,-388.7512099,0.00014601,2]
[354033196,1740187851840,-501.250964,0.00014601,2]
[354033197,1740187851849,-166.056271,0.00014601,2]
[354033198,1740187851858,-501.250964,0.00014601,2]
[354033199,1740187851867,-166.056271,0.00014601,2]
[354033200,1740187851876,-500.0,0.00014602,2]
[354033201,1740187851884,-151.0,0.00014602,2]
[354033202,1740187851894,-151.0,0.00014602,2]
[354033203,1740187851903,-151.0,0.00014602,2]
[354033204,1740187851912,-749.510208,0.00014602,2]
[354033205,1740187851922,-749.510208,0.00014602,2]
[354033206,1740187851931,-240.274127,0.00014602,2]
[354033207,1740187851940,-240.274127,0.00014602,2]
[354033208,1740187851949,-500.0,0.00014602,2]
[354033209,1740187851959,-601.84,0.00014602,2]
[354033210,1740187851968,-500.0,0.00014602,2]
[354033211,1740187851978,-527.78,0.00014602,2]
[354033212,1740187851987,-500.0,0.00014602,2]
[354033213,1740187851997,-9433.96,0.00014602,2]
[354033214,1740187852006,-2126.18,0.00014602,2]
[354033215,1740187852015,-500.0,0.00014602,2]
[354033216,1740187852024,-666.24,0.00014602,2]
[354033217,1740187852033,-4209.51,0.00014602,2]
[354033218,1740187852043,-677.23,0.00014602,2]
[354033219,1740187852052,-1273.3,0.00014602,2]
[354033220,1740187852062,-695.98,0.00014602,2]
[354033221,1740187852071,-500.0,0.00014602,2]
[354033222,1740187852080,-785.15,0.00014602,2]
[354033223,1740187852089,-1053.58,0.00014602,2]
[354033224,1740187852099,-500.0,0.00014602,2]
[354033225,1740187852108,-151.0,0.00014684,2]
[354033226,1740187852117,-151.0,0.00014684,2]
[354033227,1740187852126,-155.262024,0.00014684,2]
[354033228,1740187852135,-151.0,0.00014684,2]
[354033229,1740187852143,-151.0,0.00014684,2]
[354033230,1740187852152,-500.0,0.00014684,2]
[354033231,1740187852161,-500.0,0.00014684,2]
[354033232,1740187852171,-601.84,0.00014684,2]
[354033233,1740187852180,-500.0,0.00014684,2]
[354033234,1740187852189,-527.78,0.00014684,2]
[354033235,1740187852198,-500.0,0.00014684,2]
[354033236,1740187852207,-7485.37663805,0.00014684,2]
[354033237,1740187852283,-1948.58336195,0.00014684,2]
[354033238,1740187852292,-2126.18,0.00014684,2]
[354033239,1740187852302,-500.0,0.00014684,2]
[354033240,1740187852312,-666.24,0.00014684,2]
[354033241,1740187852321,-4209.51,0.00014684,2]
[354033242,1740187852330,-677.23,0.00014684,2]
[354033243,1740187852339,-1273.3,0.00014684,2]
[354033244,1740187852348,-397.29575113,0.00014684,2]
[354033246,1740187911493,163.992401,9.041e-05,2]
[354033248,1740188114126,2900.27,0.00019,120]
[354033249,1740188231504,18000.0,0.00012,30]
[354033251,1740188553496,513.0,0.00019,120]
[354033260,1740188826101,-504.1566296,0.00012673,2]
[354033261,1740188826123,-300.0,0.00012759,2]
[354033262,1740188826144,-402.77658834,0.0001276,2]
[354033263,1740188837115,-11048.01074043,0.0001276,2]
[354033265,1740188945127,163.992401,9.041e-05,2]
[354033266,1740188951283,-13169.62474403,0.0001276,2]
[354033301,1740189032436,-279.5879272,0.0001276,2]
[354033303,1740189032446,-993.73245348,0.00013598,2]
[354033316,1740189032559,-2006.26754652,0.00013598,2]
[354033318,1740189032568,-300.0,0.00013697,2]
[354033320,1740189032578,-151.0,0.00013698,2]
[354033322,1740189032587,-151.0,0.00013698,2]
[354033324,1740189032596,-151.0,0.00013698,2]
[354033326,1740189032606,-458.45861372,0.00013698,2]
[354033328,1740189032615,-151.0,0.00013698,2]
[354033330,1740189032625,-151.416283,0.00013698,2]
[354033332,1740189032634,-249.22682349,0.00013698,2]
[354033334,1740189032644,-631.2019315,0.00013698,2]
[354033336,1740189032653,-501.18781957,0.00013698,2]
[354033338,1740189032663,-538.31296627,0.00013698,2]
[354033340,1740189032671,-501.18536471,0.00013698,2]
[354033342,1740189032680,-524.59814083,0.00013698,2]
[354033344,1740189032690,-500.93492925,0.00013698,2]
[354033346,1740189032699,-501.14106178,0.00013698,2]
[354033348,1740189032708,-501.66864795,0.00013698,2]
[354033350,1740189032717,-500.0,0.00013698,2]
[354033352,1740189032727,-504.42376017,0.00013698,2]
[354033354,1740189032736,-502.1331722,0.00013698,2]
[354033356,1740189032746,-500.0,0.00013698,2]
[354033358,1740189032755,-459.31998981,0.00013698,2]
[354033360,1740189032764,-507.20187822,0.00013698,2]
[354033362,1740189032774,-510.60653761,0.00013698,2]
[354033364,1740189032783,-500.73149112,0.00013698,2]
[354033366,1740189032792,-500.0,0.00013698,2]
[354033368,1740189032802,-502.18599115,0.00013698,2]
[354033370,1740189032811,-501.50956108,0.00013698,2]
[354033372,1740189032820,-500.0,0.00013698,2]
[354033374,1740189032829,-500.0,0.00013698,2]
[354033376,1740189032838,-500.0,0.00013698,2]
[354033378,1740189032847,-500.0,0.00013698,2]
[354033380,1740189032857,-500.0,0.00013698,2]
[354033382,1740189032866,-500.0,0.00013698,2]
[354033384,1740189032875,-500.0,0.00013698,2]
[354033386,1740189032884,-501.83533017,0.00013698,2]
[354033388,1740189032893,-500.0,0.00013698,2]
[354033390,1740189032902,-500.0,0.00013698,2]
[354033392,1740189032911,-500.0,0.00013698,2]
[354033394,1740189032920,-503.51101591,0.00013698,2]
[354033396,1740189032931,-500.0,0.00013698,2]
[354033398,1740189032941,-500.0,0.00013698,2]
[354033400,1740189032951,-504.69458893,0.00013698,2]
[354033402,1740189032960,-503.10597956,0.00013698,2]
[354033404,1740189032969,-507.40606955,0.00013698,2]
[354033406,1740189032979,-503.52576286,0.00013698,2]
[354033408,1740189032988,-504.24102831,0.00013698,2]
[354033410,1740189032997,-503.1157106,0.00013698,2]
[354033412,1740189033006,-500.0,0.00013698,2]
[354033414,1740189033015,-503.95295437,0.00013698,2]
[354033416,1740189033025,-500.0,0.00013698,2]
[354033418,1740189033038,-435.61221339,0.00013698,2]
[354033420,1740189033048,-500.73665098,0.00013698,2]
[354033422,1740189033057,-511.78680794,0.00013698,2]
[354033424,1740189033067,-500.0,0.00013698,2]
[354033426,1740189033077,-539.34395791,0.00013698,2]
[354033429,1740189033087,-501.92526675,0.00013698,2]
[354033431,1740189033096,-500.0,0.00013698,2]
[354033433,1740189033106,-501.5225445,0.00013698,2]
[354033435,1740189033116,-518.79718003,0.00013698,2]
[354033437,1740189033126,-502.63106191,0.00013698,2]
[354033439,1740189033136,-500.0,0.00013698,2]
[354033441,1740189033146,-501.51410716,0.00013698,2]
[354033443,1740189033156,-505.63689467,0.00013698,2]
[354033445,1740189033165,-500.0,0.00013698,2]
[354033447,1740189033176,-500.0,0.00013698,2]
[354033449,1740189033186,-502.18954616,0.00013698,2]
[354033451,1740189033195,-500.0,0.00013698,2]
[354033453,1740189033205,-500.67267496,0.00013698,2]
[354033455,1740189033215,-500.0,0.00013698,2]
[354033457,1740189033224,-500.0,0.00013698,2]
[354033459,1740189033233,-500.0,0.00013698,2]
[354033461,1740189033242,-500.0,0.00013698,2]
[354033463,1740189033251,-501.54938756,0.00013698,2]
[354033465,1740189033261,-500.0,0.00013698,2]
[354033467,1740189033270,-500.0,0.00013698,2]
[354033469,1740189033279,-500.0,0.00013698,2]
[354033471,1740189033289,-502.73555229,0.00013698,2]
[354033473,1740189033299,-500.0,0.00013698,2]
[354033475,1740189033307,-503.62531757,0.00013698,2]
[354033477,1740189033317,-506.39437394,0.00013698,2]
[354033479,1740189033326,-504.55897464,0.00013698,2]
[354033481,1740189033336,-500.0,0.00013698,2]
[354033483,1740189033345,-500.0,0.00013698,2]
[354033485,1740189033354,-505.95553535,0.00013698,2]
[354033487,1740189033363,-500.0,0.00013698,2]
[354033489,1740189033372,-325.46215269,0.00013698,2]
[354033492,1740189033386,-56.53819676,0.00013698,2]
[354033494,1740189033395,-504.19006149,0.00013698,2]
[354033496,1740189033404,-509.71242855,0.00013698,2]
[354033498,1740189033413,-500.0,0.00013698,2]
[354033500,1740189033422,-511.46963417,0.00013698,2]
[354033502,1740189033433,-511.61185455,0.00013698,2]
[354033504,1740189033442,-500.89553173,0.00013698,2]
[354033506,1740189033451,-501.21726182,0.00013698,2]
[354033508,1740189033461,-503.0544168,0.00013698,2]
[354033510,1740189033470,-500.0,0.00013698,2]
[354033511,1740189033480,-501.16030948,0.00013698,2]
[354033514,1740189033490,-501.48881851,0.00013698,2]
[354033516,1740189033500,-510.3713771,0.00013698,2]
[354033517,1740189033509,-500.0,0.00013698,2]
[354033519,1740189033519,-95.45571108,0.00013698,2]
[354033522,1740189033531,-406.34695498,0.00013698,2]
[354033524,1740189033540,-500.8048254,0.00013698,2]
[354033526,1740189033550,-504.33146787,0.00013698,2]
[354033528,1740189033560,-502.02335579,0.00013698,2]
[354033530,1740189033569,-504.19459669,0.00013698,2]
[354033532,1740189033578,-501.18213648,0.00013698,2]
[354033534,1740189033588,-500.0,0.00013698,2]
[354033536,1740189033597,-505.52736421,0.00013698,2]
[354033538,1740189033607,-500.0,0.00013698,2]
[354033540,1740189033617,-500.0,0.00013698,2]
[354033542,1740189033626,-502.45658752,0.00013698,2]
[354033544,1740189033636,-501.72220611,0.00013698,2]
[354033546,1740189033645,-85.91504542,0.00013698,2]
[354033967,1740189038534,-414.88400589,0.00013698,2]
[354033968,1740189038543,-510.75068564,0.00013698,2]
[354033969,1740189038553,-501.30967495,0.00013698,2]
[354033970,1740189038562,-503.00327338,0.00013698,2]
[354033971,1740189038571,-462.09652879,0.00013698,2]
[354033972,1740189038583,-42.09913139,0.00013698,2]
[354033973,1740189038592,-239.16623068,0.00013698,2]
[354033974,1740189038601,-504.22547008,0.00013698,2]
[354033975,1740189038610,-500.0,0.00013698,2]
[354033976,1740189038620,-513.07099287,0.00013698,2]
[354033977,1740189038629,-506.90793783,0.00013698,2]
[354033978,1740189038638,-500.0,0.00013698,2]
[354033979,1740189038647,-483.78439709,0.00013698,2]
[354033980,1740189038656,-501.44927576,0.00013698,2]
[354033982,1740189038665,-500.0,0.00013698,2]
[354033983,1740189038674,-501.10545411,0.00013698,2]
[354033984,1740189038684,-500.0,0.00013698,2]
[354033985,1740189038694,-500.0,0.00013698,2]
[354033986,1740189038704,-500.0,0.00013698,2]
[354033987,1740189038714,-501.72986872,0.00013698,2]
[354033988,1740189038724,-508.43489702,0.00013698,2]
[354033989,1740189038734,-501.69039382,0.00013698,2]
[354033991,1740189038743,-500.0,0.00013698,2]
[354033993,1740189038753,-519.20210678,0.00013698,2]
[354033995,1740189038762,-507.66533946,0.00013698,2]
[354033997,1740189038771,-502.46023905,0.00013698,2]
[354033999,1740189038781,-500.0,0.00013698,2]
[354034001,1740189038792,-506.09820111,0.00013698,2]
[354034002,1740189038801,-502.70423658,0.00013698,2]
[354034004,1740189038811,-500.0,0.00013698,2]
[354034005,1740189038821,-316.10692932,0.00013698,2]
[354034006,1740189038830,-500.0,0.00013698,2]
[354034007,1740189038840,-500.0,0.00013698,2]
[354034008,1740189038849,-500.0,0.00013698,2]
[354034009,1740189038858,-500.0,0.00013698,2]
[354034010,1740189038867,-500.0,0.00013698,2]
[354034011,1740189038877,-501.84827127,0.00013698,2]
[354034012,1740189038886,-500.0,0.00013698,2]
[354034013,1740189038895,-512.1070335,0.00013698,2]
[354034014,1740189038904,-500.53981603,0.00013698,2]
[354034015,1740189038913,-500.63451067,0.00013698,2]
[354034016,1740189038922,-500.0,0.00013698,2]
[354034017,1740189038931,-500.0,0.00013698,2]
[354034018,1740189038943,-500.26938457,0.00013698,2]
[354034019,1740189038952,-501.91692969,0.00013698,2]
[354034020,1740189038961,-500.0,0.00013698,2]
[354034021,1740189038970,-500.0,0.00013698,2]
[354034022,1740189038978,-4920.87,0.00013698,2]
[354034023,1740189038987,-500.0,0.00013698,2]
[354034024,1740189038996,-500.0,0.00013698,2]
[354034025,1740189039006,-500.0,0.00013698,2]
[354034026,1740189039015,-500.0,0.00013698,2]
[354034027,1740189039024,-504.62621171,0.00013698,2]
[354034028,1740189039037,-500.0,0.00013698,2]
[354034029,1740189039046,-500.0,0.00013698,2]
[354034030,1740189039055,-413.45993161,0.00013698,2]
[354034031,1740189039067,-86.54006839,0.00013698,2]
[354034032,1740189039078,-503.41284574,0.00013698,2]
[354034033,1740189039087,-527.04078899,0.00013698,2]
[354034034,1740189039096,-500.0,0.00013698,2]
[354034035,1740189039105,-500.0,0.00013698,2]
[354034036,1740189039116,-502.76711735,0.00013698,2]
[354034037,1740189039126,-500.0,0.00013698,2]
[354034038,1740189039135,-501.00943599,0.00013698,2]
[354034039,1740189039144,-500.0,0.00013698,2]
[354034040,1740189039243,-504.08562476,0.00013698,2]
[354034041,1740189039253,-504.90280379,0.00013698,2]
[354034042,1740189039263,-614.32137138,0.00013698,2]
[354034043,1740189039279,-630.93862862,0.00013698,2]
[354034044,1740189039288,-44.36857442,0.00013698,2]
[354034045,1740189039299,-455.63142558,0.00013698,2]
[354034046,1740189039307,-500.0,0.00013698,2]
[354034047,1740189039316,-500.0,0.00013698,2]
[354034048,1740189039326,-509.68434421,0.00013698,2]
[354034049,1740189039335,-500.0,0.00013698,2]
[354034050,1740189039343,-505.40861263,0.00013698,2]
[354034051,1740189039352,-658.08,0.00013698,2]
[354034052,1740189039362,-501.1596238,0.00013698,2]
[354034053,1740189039371,-513.20556023,0.00013698,2]
[354034054,1740189039379,-500.86838248,0.00013698,2]
[354034055,1740189039390,-500.0,0.00013698,2]
[354034056,1740189039399,-501.1954751,0.00013698,2]
[354034057,1740189039408,-500.0,0.00013698,2]
[354034058,1740189039417,-501.60526529,0.00013698,2]
[354034059,1740189039427,-2141.9,0.00013698,2]
[354034060,1740189039436,-501.80515788,0.00013698,2]
[354034061,1740189039445,-500.0,0.00013698,2]
[354034062,1740189039454,-505.16406598,0.00013698,2]
[354034063,1740189039463,-500.0,0.00013698,2]
[354034064,1740189039472,-545.33131825,0.00013698,2]
[354034065,1740189039481,-168.54965353,0.00013698,2]
[354034066,1740189039491,-503.7174134,0.00013698,2]
[354034067,1740189039500,-500.0,0.00013698,2]
[354034068,1740189039509,-500.0,0.00013698,2]
[354034069,1740189039518,-500.0,0.00013698,2]
[354034070,1740189039527,-507.54800145,0.00013698,2]
[354034071,1740189039536,-501.74074493,0.00013698,2]
[354034072,1740189039545,-500.0,0.00013698,2]
[354034073,1740189039554,-503.97033054,0.00013698,2]
[354034074,1740189039563,-500.0,0.00013698,2]
[354034075,1740189039572,-500.0,0.00013698,2]
[354034076,1740189039582,-500.0,0.00013698,2]
[354034077,1740189039591,-500.0,0.00013698,2]
[354034078,1740189039600,-501.97834241,0.00013698,2]
[354034079,1740189039609,-500.0,0.00013698,2]
[354034080,1740189039618,-649.43573245,0.00013698,2]
[354034081,1740189039628,-500.0,0.00013698,2]
[354034082,1740189039637,-522.76169412,0.00013698,2]
[354034083,1740189039646,-500.0,0.00013698,2]
[354034084,1740189039655,-501.0085306,0.00013698,2]
[354034085,1740189039665,-502.51649907,0.00013698,2]
[354034086,1740189039675,-506.8937198,0.00013698,2]
[354034087,1740189039684,-500.0,0.00013698,2]
[354034088,1740189039694,-504.15465424,0.00013698,2]
[354034089,1740189039703,-501.47801918,0.00013698,2]
[354034090,1740189039712,-519.42297541,0.00013698,2]
[354034091,1740189039722,-500.0,0.00013698,2]
[354034092,1740189039732,-298.63629636,0.00013698,2]
[354034093,1740189039741,-316.15130909,0.00013698,2]
[354034094,1740189039751,-503.28334982,0.00013698,2]
[354034095,1740189039760,-500.0,0.00013698,2]
[354034096,1740189039769,-524.03149872,0.00013698,2]
[354034097,1740189039779,-503.18017723,0.00013698,2]
[354034098,1740189039788,-500.0,0.00013698,2]
[354034099,1740189039798,-500.0,0.00013698,2]
[354034100,1740189039808,-500.0,0.00013698,2]
[354034101,1740189039817,-500.0,0.00013698,2]
[354034102,1740189039827,-500.0,0.00013698,2]
[354034103,1740189039836,-500.0,0.00013698,2]
[354034104,1740189039845,-547.93,0.00013698,2]
[354034105,1740189039854,-410.62755729,0.00013698,2]
[354034145,1740189040657,-89.92815362,0.00013698,2]
[354034147,1740189040666,-500.0,0.00013698,2]
[354034149,1740189040676,-505.21210409,0.00013698,2]
[354034151,1740189040687,-501.13111731,0.00013698,2]
[354034153,1740189040697,-510.95743918,0.00013698,2]
[354034155,1740189040707,-521.39892607,0.00013698,2]
[354034157,1740189040716,-501.15406677,0.00013698,2]
[354034159,1740189040726,-502.36258161,0.00013698,2]
[354034160,1740189040736,-501.34043757,0.00013698,2]
[354034162,1740189040746,-500.0,0.00013698,2]
[354034164,1740189040755,-500.0,0.00013698,2]
[354034166,1740189040765,-500.0,0.00013698,2]
[354034168,1740189040774,-501.90672993,0.00013698,2]
[354034170,1740189040783,-500.0,0.00013698,2]
[354034172,1740189040796,-500.79636355,0.00013698,2]
[354034174,1740189040805,-500.0,0.00013698,2]
[354034176,1740189040814,-931.43,0.00013698,2]
[354034178,1740189040824,-501.43773163,0.00013698,2]
[354034180,1740189040834,-501.45178142,0.00013698,2]
[354034181,1740189040844,-500.0,0.00013698,2]
[354034182,1740189040854,-501.11989872,0.00013698,2]
[354034183,1740189040864,-503.45516122,0.00013698,2]
[354034184,1740189040873,-3401.97,0.00013698,2]
[354034185,1740189040883,-500.0,0.00013698,2]
[354034186,1740189040892,-502.0394739,0.00013698,2]
[354034187,1740189040902,-504.70776462,0.00013698,2]
[354034188,1740189040912,-500.0,0.00013698,2]
[354034189,1740189040921,-500.0,0.00013698,2]
[354034190,1740189040930,-501.30313146,0.00013698,2]
[354034191,1740189040943,-501.55703243,0.00013698,2]
[354034192,1740189040952,-508.48495833,0.00013698,2]
[354034193,1740189040962,-507.27312698,0.00013698,2]
[354034194,1740189040971,-500.0,0.00013698,2]
[354034195,1740189040980,-500.0,0.00013698,2]
[354034196,1740189040990,-505.57175046,0.00013698,2]
[354034197,1740189040999,-829.47,0.00013698,2]
[354034198,1740189041009,-829.47,0.00013698,2]
[354034199,1740189041018,-829.47,0.00013698,2]
[354034200,1740189041030,-504.09753945,0.00013698,2]
[354034201,1740189041042,-829.47,0.00013698,2]
[354034202,1740189041051,-829.47,0.00013698,2]
[354034203,1740189041061,-829.47,0.00013698,2]
[354034204,1740189041071,-500.0,0.00013698,2]
[354034205,1740189041082,-500.0,0.00013698,2]
[354034206,1740189041092,-1674.1454074,0.00013699,2]
[354034207,1740189041102,-164.492199,0.00013699,2]
[354034208,1740189041111,-150.06533134,0.00013699,2]
[354034209,1740189041122,-151.0,0.00013699,2]
[354034210,1740189041131,-249.46909,0.00013699,2]
[354034211,1740189041140,-829.47,0.00013779,2]
[354034212,1740189041150,-829.47,0.00013779,2]
[354034213,1740189041159,-500.0,0.00013779,2]
[354034214,1740189041169,-373.72751645,0.00013779,2]
[354034215,1740189041178,-500.0,0.00013779,2]
[354034216,1740189041188,-500.0,0.00013779,2]
[354034217,1740189041198,-500.0,0.00013779,2]
[354034218,1740189041208,-500.0,0.00013779,2]
[354034219,1740189041218,-500.0,0.00013779,2]
[354034220,1740189041227,-500.0,0.00013779,2]
[354034221,1740189041237,-401.2436266,0.00013779,2]
[354034222,1740189041247,-500.0,0.00013779,2]
[354034223,1740189041256,-500.0,0.00013779,2]
[354034224,1740189041265,-500.0,0.00013779,2]
[354034225,1740189041274,-500.0,0.00013779,2]
[354034226,1740189041284,-227.73532103,0.00013779,2]
[354034227,1740189041294,-301.54197758,0.00013779,2]
[354034228,1740189041304,-500.0,0.00013779,2]
[354034229,1740189041314,-230.21887038,0.00013779,2]
[354034230,1740189041323,-500.0,0.00013779,2]
[354034231,1740189041334,-151.0,0.0001378,2]
[354034232,1740189041344,-151.0,0.0001378,2]
[354034233,1740189041353,-511.06528409,0.0001378,2]
[354034234,1740189041363,-504.14537346,0.0001378,2]
[354034235,1740189041372,-510.12483415,0.0001378,2]
[354034236,1740189041381,-502.49996525,0.0001378,2]
[354034237,1740189041391,-500.0,0.0001378,2]
[354034238,1740189041400,-500.0,0.0001378,2]
[354034239,1740189041410,-500.0,0.0001378,2]
[354034240,1740189041420,-500.0,0.0001378,2]
[354034241,1740189041430,-500.0,0.0001378,2]
[354034242,1740189041440,-504.24568654,0.0001378,2]
[354034243,1740189041450,-500.0,0.0001378,2]
[354034244,1740189041460,-500.0,0.0001378,2]
[354034245,1740189041469,-500.0,0.0001378,2]
[354034246,1740189041479,-511.93720987,0.0001378,2]
[354034247,1740189041488,-512.41969055,0.0001378,2]
[354034248,1740189041498,-502.58340768,0.0001378,2]
[354034249,1740189041507,-500.0,0.0001378,2]
[354034250,1740189041516,-375.31386026,0.0001378,2]
[354034251,1740189041526,-507.0112332,0.0001378,2]
[354034252,1740189041535,-513.08555889,0.0001378,2]
[354034253,1740189041544,-511.82657176,0.0001378,2]
[354034254,1740189041554,-506.27175613,0.0001378,2]
[354034255,1740189041563,-502.96730332,0.0001378,2]
[354034256,1740189041573,-502.385518,0.0001378,2]
[354034257,1740189041582,-510.97011572,0.0001378,2]
[354034258,1740189041592,-501.9531866,0.0001378,2]
[354034259,1740189041602,-504.56406371,0.0001378,2]
[354034260,1740189041611,-503.06589223,0.0001378,2]
[354034261,1740189041620,-505.73869107,0.0001378,2]
[354034262,1740189041630,-507.48301996,0.0001378,2]
[354034263,1740189041639,-554.49341299,0.0001378,2]
[354034264,1740189041648,-502.75758285,0.0001378,2]
[354034265,1740189041658,-500.0,0.0001378,2]
[354034266,1740189041667,-500.0,0.0001378,2]
[354034267,1740189041677,-504.44088792,0.0001378,2]
[354034268,1740189041687,-500.0,0.0001378,2]
[354034269,1740189041696,-500.0,0.0001378,2]
[354034270,1740189041705,-500.0,0.0001378,2]
[354034271,1740189041715,-500.0,0.0001378,2]
[354034272,1740189041724,-241.51207874,0.0001378,2]
[354034273,1740189041733,-516.54526172,0.0001378,2]
[354034274,1740189041743,-504.0971537,0.0001378,2]